[Event "VIII Iberoamericano Mexico 2022"]
[Site "Mexico City"]
[Date "2022.02.17"]
[Round "6.42"]
[White "Limon Olmos, Ivan Alonso"]
[Black "Flores Irurso, Paul Josue"]
[Result "1/2-1/2"]
[ECO "E92"]
[WhiteElo "2106"]
[BlackElo "1912"]
[Annotator "NA"]
[PlyCount "146"]
[EventDate "2022.02.12"]
[EventType "swiss"]
[EventCountry "MEX"]
[SourceTitle "playchess.com"]
[Source "ChessBase"]
[SourceQuality "1"]
[TimeControl "5400+30"]

1. d4 {[%emt 0:09:39]} Nf6 {[%emt 0:00:44]} 2. Nf3 {[%emt 0:00:48]} g6 {[%emt 0:00:30]} 3. c4 {[%emt 0:00:15]} Bg7 {[%emt 0:00:08]} 4. Nc3 {[%emt 0:00:23]} O-O {[%emt 0:00:49]} 5. e4 {[%emt 0:00:26]} d6 {[%emt 0:00:48]} 6. Be2 {[%emt 0:00:36]} e5 {[%emt 0:01:01]} 7. dxe5 {[%emt 0:00:59]} dxe5 {[%emt 0:00:06]} 8. Qc2 {[%emt 0:00:46]} Nc6 {[%emt 0:06:34]} 9. Bg5 {[%emt 0:00:39]} Bg4 {[%emt 0:04:32]} 10. Rd1 {[%emt 0:06:36]} Qc8 {[%emt 0:07:23]} 11. Be3 {[%emt 0:14:01]} Bxf3 {[%emt 0:12:26]} 12. Bxf3 {[%emt 0:00:33]} Ng4 {[%emt 0:00:39]} 13. Bc5 {[%emt 0:11:56]} Re8 {[%emt 0:06:50]} 14. h3 {[%emt 0:08:56]} Nf6 {[%emt 0:02:40]} 15. O-O {[%emt 0:03:54]} h5 {[%emt 0:08:52]} 16. Be3 {[%emt 0:05:37]} Nh7 {[%emt 0:04:18]} 17. Ne2 {[%emt 0:03:14]} Nf8 {[%emt 0:03:23]} 18. a3 {[%emt 0:06:28]} a5 {[%emt 0:02:58]} 19. c5 {[%emt 0:02:20]} Ne6 {[%emt 0:02:16]} 20. Rfe1 {[%emt 0:04:08]} Ra6 {[%emt 0:08:57]} 21. Qc4 {[%emt 0:02:09]} Ncd4 {[%emt 0:04:06]} 22. Nxd4 {[%emt 0:01:30]} exd4 {[%emt 0:02:53]} 23. Bc1 {[%emt 0:00:37]} a4 {[%emt 0:01:40]} 24. e5 {[%emt 0:02:38]} c6 {[%emt 0:03:19]} 25. Qc2 {[%emt 0:02:22]} Ra5 {[%emt 0:00:43]} 26. Bd2 {[%emt 0:01:00]} Rxc5 {[%emt 0:00:39]} 27. Qxa4 {[%emt 0:00:04]} Rxe5 {[%emt 0:00:29]} 28. Rf1 {[%emt 0:00:08]} Ng5 {[%emt 0:01:19]} 29. Bxg5 {[%emt 0:01:31]} Rxg5 {[%emt 0:00:07]} 30. Kh1 {[%emt 0:00:12]} Qc7 {[%emt 0:01:31]} 31. Rfe1 {[%emt 0:02:19]} Rge5 {[%emt 0:01:04]} 32. Rxe5 {[%emt 0:00:08]} Qxe5 {[%emt 0:00:08]} 33. Qb3 {[%emt 0:00:27]} Qa5 {[%emt 0:00:52]} 34. Kh2 {[%emt 0:01:40]} Qc7+ {[%emt 0:01:29]} 35. Kg1 {[%emt 0:00:19]} Be5 {[%emt 0:01:30]} 36. Qd3 {[%emt 0:00:32]} c5 {[%emt 0:00:16]} 37. Bd5 {[%emt 0:00:06]} Kg7 {[%emt 0:00:11]} 38. a4 {[%emt 0:03:13]} b6 {[%emt 0:02:00]} 39. b3 {[%emt 0:00:05]} Qd6 {[%emt 0:00:35]} 40. Qf3 {[%emt 0:01:09]} Bf6 {[%emt 0:00:31]} 41. Bc4 {[%emt 0:01:00]} Re7 {[%emt 0:01:50]} 42. Kh1 {[%emt 0:01:05]} Qc7 {[%emt 0:01:34]} 43. Kg1 {[%emt 0:00:44]} Re5 {[%emt 0:00:08]} 44. Bd3 {[%emt 0:01:07]} Qe7 {[%emt 0:00:34]} 45. Kf1 {[%emt 0:00:19]} Bg5 {[%emt 0:01:17]} 46. Kg1 {[%emt 0:00:58]} Re6 {[%emt 0:02:04]} 47. Rf1 {[%emt 0:00:36]} Rf6 {[%emt 0:00:56]} 48. Qe4 {[%emt 0:01:13]} Qxe4 {[%emt 0:00:36]} 49. Bxe4 {[%emt 0:00:04]} Re6 {[%emt 0:00:43]} 50. Bd3 {[%emt 0:00:11]} Bd2 {[%emt 0:00:10]} 51. Rd1 {[%emt 0:00:07]} Bc3 {[%emt 0:00:14]} 52. Kf1 {[%emt 0:00:27]} f5 {[%emt 0:00:11]} 53. Kg1 {[%emt 0:00:04]} f4 {[%emt 0:00:23]} 54. Kf1 {[%emt 0:00:41]} Kf6 {[%emt 0:00:22]} 55. Be2 {[%emt 0:01:01]} Kg5 {[%emt 0:00:38]} 56. Rd3 {[%emt 0:00:48]} Re4 {[%emt 0:01:46]} 57. Rd1 {[%emt 0:00:33]} Re7 {[%emt 0:00:29]} 58. Rd3 {[%emt 0:00:44]} Kf5 {[%emt 0:00:27]} 59. Rd1 {[%emt 0:00:12]} Re5 {[%emt 0:00:20]} 60. h4 {[%emt 0:00:58]} Kf6 {[%emt 0:00:42]} 61. Rd3 {[%emt 0:00:12]} g5 {[%emt 0:00:32]} 62. hxg5+ {[%emt 0:00:21]} Kxg5 {[%emt 0:00:28]} 63. Rh3 {[%emt 0:00:34]} h4 {[%emt 0:01:08]} 64. Rf3 {[%emt 0:04:08]} Re7 {[%emt 0:00:31]} 65. Rd3 {[%emt 0:00:00]} Rh7 {[%emt 0:02:20]} 66. Rh3 {[%emt 0:00:00]} Kf6 {[%emt 0:00:21]} 67. g3 {[%emt 0:00:00]} fxg3 {[%emt 0:00:41]} 68. fxg3 {[%emt 0:00:00]} Kg5 {[%emt 0:00:33]} 69. gxh4+ {[%emt 0:00:00]} Rxh4 {[%emt 0:00:08]} 70. Rxh4 {[%emt 0:00:00]} Kxh4 {[%emt 0:00:08]} 71. Kg2 {[%emt 0:00:00]} Kg5 {[%emt 0:00:52]} 72. Kf3 {[%emt 0:00:00]} Kf5 {[%emt 0:00:17]} 73. Bd3+ {[%emt 0:00:00]} Ke5 {[%emt 0:02:21]} 1/2-1/2

[Event "VIII Iberoamericano Mexico 2022"]
[Site "Mexico City"]
[Date "2022.02.17"]
[Round "6.43"]
[White "Ruiz Perez, Juan Octavio"]
[Black "Mares Arellano, Juan Antoni"]
[Result "1/2-1/2"]
[ECO "B42"]
[WhiteElo "2074"]
[BlackElo "1812"]
[Annotator "NA"]
[PlyCount "110"]
[EventDate "2022.02.12"]
[EventType "swiss"]
[EventCountry "MEX"]
[SourceTitle "playchess.com"]
[Source "ChessBase"]
[SourceQuality "1"]
[TimeControl "5400+30"]

1. e4 {[%emt 0:00:04]} c5 {[%emt 0:00:13]} 2. Nf3 {[%emt 0:00:18]} a6 {[%emt 0:00:04]} 3. d4 {[%emt 0:03:10]} cxd4 {[%emt 0:00:05]} 4. Nxd4 {[%emt 0:01:05]} e6 {[%emt 0:00:06]} 5. Bd3 {[%emt 0:00:30]} b6 {[%emt 0:00:30]} 6. Qe2 {[%emt 0:00:30]} Bb7 {[%emt 0:00:30]} 7. Nc3 {[%emt 0:00:30]} d6 {[%emt 0:00:30]} 8. Bd2 {[%emt 0:00:30]} Nd7 {[%emt 0:00:30]} 9. O-O-O {[%emt 0:00:30]} Ne7 {[%emt 0:00:30]} 10. f4 {[%emt 0:23:34]} Nc5 {[%emt 0:11:12]} 11. Kb1 {[%emt 0:01:10]} Nc6 {[%emt 0:03:40]} 12. Nxc6 {[%emt 0:03:37]} Bxc6 {[%emt 0:00:18]} 13. f5 {[%emt 0:02:55]} e5 {[%emt 0:01:21]} 14. Bc4 {[%emt 0:01:29]} b5 {[%emt 0:13:32]} 15. Bd5 {[%emt 0:01:38]} Rc8 {[%emt 0:00:14]} 16. Bxc6+ {[%emt 0:01:03]} Rxc6 {[%emt 0:00:04]} 17. Nd5 {[%emt 0:00:08]} Be7 {[%emt 0:10:02]} 18. Rhf1 {[%emt 0:04:55]} Bf6 {[%emt 0:18:06]} 19. Rf3 {[%emt 0:07:28]} h6 {[%emt 0:00:33]} 20. Rc3 {[%emt 0:06:53]} Rc8 {[%emt 0:02:26]} 21. Nxf6+ {[%emt 0:04:08]} gxf6 {[%emt 0:02:04]} 22. Rh3 {[%emt 0:01:11]} Na4 {[%emt 0:02:32]} 23. Bb4 {[%emt 0:03:21]} Nc5 {[%emt 0:02:23]} 24. Rc3 {[%emt 0:06:04]} Qb6 {[%emt 0:02:08]} 25. Rd5 {[%emt 0:00:53]} Ke7 {[%emt 0:06:52]} 26. Qe3 {[%emt 0:03:08]} Rhd8 {[%emt 0:00:21]} 27. Ra3 {[%emt 0:04:46]} Rd7 {[%emt 0:00:51]} 28. Rad3 {[%emt 0:02:02]} a5 {[%emt 0:03:55]} 29. Be1 {[%emt 0:00:58]} Qd8 {[%emt 0:01:42]} 30. Rd1 {[%emt 0:02:33]} b4 {[%emt 0:00:17]} 31. Bh4 {[%emt 0:00:45]} Qh8 {[%emt 0:00:29]} 32. g4 {[%emt 0:02:23]} Rc6 {[%emt 0:04:10]} 33. Qe2 {[%emt 0:01:06]} Rb7 {[%emt 0:02:21]} 34. Bf2 {[%emt 0:01:25]} Na4 {[%emt 0:00:15]} 35. Qd3 {[%emt 0:03:33]} Qd8 {[%emt 0:03:55]} 36. Ka1 {[%emt 0:03:33]} Qc7 {[%emt 0:01:20]} 37. Rc1 {[%emt 0:05:14]} Nc5 {[%emt 0:02:43]} 38. Bxc5 {[%emt 0:00:00]} Rxc5 {[%emt 0:00:02]} 39. Rxc5 {[%emt 0:00:00]} Qxc5 {[%emt 0:00:08]} 40. Kb1 {[%emt 0:00:00]} a4 {[%emt 0:00:30]} 41. Qd2 {[%emt 0:00:00]} a3 {[%emt 0:00:27]} 42. Qd5 {[%emt 0:01:28]} Qa7 {[%emt 0:00:46]} 43. Rd1 {[%emt 0:00:12]} Qa6 {[%emt 0:00:21]} 44. b3 {[%emt 0:00:24]} Qb6 {[%emt 0:00:26]} 45. h4 {[%emt 0:00:22]} Rc7 {[%emt 0:00:22]} 46. g5 {[%emt 0:00:31]} hxg5 {[%emt 0:01:02]} 47. hxg5 {[%emt 0:00:02]} fxg5 {[%emt 0:00:21]} 48. Qd2 {[%emt 0:00:12]} Qc6 {[%emt 0:05:08]} 49. Qxg5+ {[%emt 0:00:22]} Kd7 {[%emt 0:00:13]} 50. Qd2 {[%emt 0:00:35]} Ke7 {[%emt 0:03:00]} 51. Qg5+ {[%emt 0:00:14]} Kd7 {[%emt 0:00:00]} 52. Qd2 {[%emt 0:00:18]} Ke7 {[%emt 0:01:00]} 53. Qg5+ {[%emt 0:01:19]} Kd7 {[%emt 0:00:00]} 54. Qd2 {[%emt 0:00:18]} Ke7 {[%emt 0:00:00]} 55. Qg5+ {[%emt 0:01:08]} Kd7 {[%emt 0:00:00]} 1/2-1/2

[Event "VIII Iberoamericano Mexico 2022"]
[Site "Mexico City"]
[Date "2022.02.17"]
[Round "6.44"]
[White "Fernandez Pozas, Pablo Antonio"]
[Black "Hernandez Diaz, Paula Sofia"]
[Result "1-0"]
[ECO "D34"]
[WhiteElo "2072"]
[BlackElo "1762"]
[Annotator "NA"]
[PlyCount "107"]
[EventDate "2022.02.12"]
[EventType "swiss"]
[EventCountry "MEX"]
[SourceTitle "playchess.com"]
[Source "ChessBase"]
[SourceQuality "1"]
[TimeControl "5400+30"]

1. d4 {[%emt 0:04:42]} d5 {[%emt 0:00:12]} 2. c4 {[%emt 0:00:17]} e6 {[%emt 0:00:08]} 3. Nc3 {[%emt 0:00:03]} c5 {[%emt 0:00:08]} 4. cxd5 {[%emt 0:00:07]} exd5 {[%emt 0:00:13]} 5. Nf3 {[%emt 0:00:22]} Nc6 {[%emt 0:00:08]} 6. g3 {[%emt 0:00:29]} Nf6 {[%emt 0:00:39]} 7. Bg2 {[%emt 0:00:16]} Be7 {[%emt 0:01:03]} 8. O-O {[%emt 0:00:13]} O-O {[%emt 0:00:53]} 9. Bg5 {[%emt 0:06:13]} Be6 {[%emt 0:07:23]} 10. Rc1 {[%emt 0:02:05]} cxd4 {[%emt 0:24:54]} 11. Nxd4 {[%emt 0:00:26]} Nxd4 {[%emt 0:00:46]} 12. Qxd4 {[%emt 0:00:12]} Qa5 {[%emt 0:00:47]} 13. h3 {[%emt 0:21:47]} Rfd8 {[%emt 0:07:28]} 14. Rfd1 {[%emt 0:03:46]} h6 {[%emt 0:07:44]} 15. Be3 {[%emt 0:07:33]} b6 {[%emt 0:05:48]} 16. Qf4 {[%emt 0:04:42]} Rac8 {[%emt 0:13:11]} 17. Bd4 {[%emt 0:08:54]} Bd6 {[%emt 0:07:31]} 18. Qd2 {[%emt 0:04:18]} Be7 {[%emt 0:03:02]} 19. a3 {[%emt 0:02:07]} Ne8 {[%emt 0:09:48]} 20. Ra1 {[%emt 0:10:40]} Bf6 {[%emt 0:05:31]} 21. e3 {[%emt 0:01:27]} Bxd4 {[%emt 0:01:29]} 22. Qxd4 {[%emt 0:00:03]} Nf6 {[%emt 0:01:01]} 23. Rd2 {[%emt 0:07:31]} Qc5 {[%emt 0:01:12]} 24. Qxc5 {[%emt 0:00:31]} bxc5 {[%emt 0:00:26]} 25. Rad1 {[%emt 0:00:36]} Kf8 {[%emt 0:00:32]} 26. Nxd5 {[%emt 0:00:28]} Nxd5 {[%emt 0:00:25]} 27. g4 {[%emt 0:01:46]} Ke7 {[%emt 0:00:48]} 28. Bxd5 {[%emt 0:00:02]} Bxd5 {[%emt 0:00:08]} 29. Rxd5 {[%emt 0:00:04]} Rxd5 {[%emt 0:00:10]} 30. Rxd5 {[%emt 0:00:01]} Ke6 {[%emt 0:00:18]} 31. e4 {[%emt 0:00:16]} Rc7 {[%emt 0:01:07]} 32. Kg2 {[%emt 0:01:03]} c4 {[%emt 0:00:56]} 33. Ra5 {[%emt 0:00:25]} Rb7 {[%emt 0:00:28]} 34. Rc5 {[%emt 0:00:33]} Rxb2 {[%emt 0:00:16]} 35. Rxc4 {[%emt 0:00:02]} Rb3 {[%emt 0:00:13]} 36. Ra4 {[%emt 0:00:09]} Rb7 {[%emt 0:00:11]} 37. Ra5 {[%emt 0:00:14]} Kd6 {[%emt 0:00:41]} 38. Kg3 {[%emt 0:00:23]} Kc6 {[%emt 0:00:27]} 39. Kf4 {[%emt 0:00:23]} Kb6 {[%emt 0:00:48]} 40. Rd5 {[%emt 0:00:27]} Rc7 {[%emt 0:00:32]} 41. a4 {[%emt 0:00:12]} a5 {[%emt 0:00:10]} 42. Ke5 {[%emt 0:03:18]} Re7+ {[%emt 0:00:50]} 43. Kd4 {[%emt 0:00:16]} Rc7 {[%emt 0:00:16]} 44. Rd6+ {[%emt 0:00:35]} Kb7 {[%emt 0:00:24]} 45. f4 {[%emt 0:00:19]} Ka7 {[%emt 0:01:03]} 46. e5 {[%emt 0:00:25]} Kb7 {[%emt 0:00:26]} 47. f5 {[%emt 0:00:19]} Re7 {[%emt 0:00:33]} 48. Kd5 {[%emt 0:00:41]} Kc7 {[%emt 0:00:30]} 49. e6 {[%emt 0:00:36]} fxe6+ {[%emt 0:00:26]} 50. fxe6 {[%emt 0:00:02]} g6 {[%emt 0:00:15]} 51. Ra6 {[%emt 0:00:11]} Kb7 {[%emt 0:00:25]} 52. Rxa5 {[%emt 0:00:02]} Kb6 {[%emt 0:00:06]} 53. Rb5+ {[%emt 0:00:08]} Ka6 {[%emt 0:00:04]} 54. Kd6 {[%emt 0:00:15]} 1-0

[Event "VIII Iberoamericano Mexico 2022"]
[Site "Mexico City"]
[Date "2022.02.17"]
[Round "6.45"]
[White "Torres Rivas, Felipe de Jesus"]
[Black "Gutierrez Herrera, Jose Antonio"]
[Result "1-0"]
[ECO "E17"]
[WhiteElo "1845"]
[BlackElo "2059"]
[Annotator "NA"]
[PlyCount "225"]
[EventDate "2022.02.12"]
[EventType "swiss"]
[EventCountry "MEX"]
[SourceTitle "playchess.com"]
[Source "ChessBase"]
[SourceQuality "1"]
[TimeControl "5400+30"]

1. d4 {[%emt 0:03:03]} Nf6 {[%emt 0:00:15]} 2. c4 {[%emt 0:00:35]} e6 {[%emt 0:00:13]} 3. Nf3 {[%emt 0:00:09]} d5 {[%emt 0:01:31]} 4. g3 {[%emt 0:00:08]} Be7 {[%emt 0:02:24]} 5. Bg2 {[%emt 0:00:29]} O-O {[%emt 0:00:09]} 6. O-O {[%emt 0:00:04]} b6 {[%emt 0:00:32]} 7. cxd5 {[%emt 0:00:42]} exd5 {[%emt 0:00:20]} 8. Nc3 {[%emt 0:00:21]} Bb7 {[%emt 0:00:20]} 9. b3 {[%emt 0:05:50]} Nbd7 {[%emt 0:05:33]} 10. Bb2 {[%emt 0:00:07]} c6 {[%emt 0:06:13]} 11. Rc1 {[%emt 0:00:31]} Re8 {[%emt 0:01:15]} 12. Qc2 {[%emt 0:00:46]} Bd6 {[%emt 0:00:43]} 13. Rfe1 {[%emt 0:05:31]} Qe7 {[%emt 0:03:01]} 14. Nh4 {[%emt 0:02:48]} Bb4 {[%emt 0:09:32]} 15. Nf5 {[%emt 0:18:04]} Qf8 {[%emt 0:02:38]} 16. Ra1 {[%emt 0:17:30]} g6 {[%emt 0:10:35]} 17. Nh4 {[%emt 0:00:11]} Ne4 {[%emt 0:00:50]} 18. a3 {[%emt 0:07:36]} Bxc3 {[%emt 0:06:48]} 19. Bxc3 {[%emt 0:00:07]} Nxc3 {[%emt 0:00:07]} 20. Qxc3 {[%emt 0:00:02]} Qg7 {[%emt 0:00:07]} 21. b4 {[%emt 0:09:31]} Nf6 {[%emt 0:03:57]} 22. Nf3 {[%emt 0:03:37]} Ne4 {[%emt 0:00:15]} 23. Qb3 {[%emt 0:01:50]} Qf6 {[%emt 0:00:29]} 24. e3 {[%emt 0:03:03]} Re7 {[%emt 0:03:16]} 25. Rac1 {[%emt 0:01:00]} Ba6 {[%emt 0:08:02]} 26. Qc2 {[%emt 0:00:45]} Bb7 {[%emt 0:04:12]} 27. Ne5 {[%emt 0:11:05]} Qe6 {[%emt 0:24:48]} 28. Nxc6 {[%emt 0:05:29]} Rc7 {[%emt 0:00:09]} 29. b5 {[%emt 0:00:04]} Bxc6 {[%emt 0:00:08]} 30. bxc6 {[%emt 0:00:07]} Rac8 {[%emt 0:00:02]} 31. Bxe4 {[%emt 0:01:11]} dxe4 {[%emt 0:00:03]} 32. Qa4 {[%emt 0:00:14]} Rxc6 {[%emt 0:00:06]} 33. Rxc6 {[%emt 0:00:13]} Qxc6 {[%emt 0:00:10]} 34. Qxa7 {[%emt 0:00:43]} Ra8 {[%emt 0:02:44]} 35. Qe7 {[%emt 0:00:05]} Qc3 {[%emt 0:00:10]} 36. Rb1 {[%emt 0:00:30]} Qd3 {[%emt 0:00:37]} 37. Qb4 {[%emt 0:00:31]} Rxa3 {[%emt 0:00:29]} 38. Qxb6 {[%emt 0:00:18]} Ra6 {[%emt 0:00:31]} 39. Qb8+ {[%emt 0:00:06]} Kg7 {[%emt 0:00:07]} 40. Qe5+ {[%emt 0:02:19]} Kh6 {[%emt 0:00:16]} 41. Qb5 {[%emt 0:01:43]} Qc2 {[%emt 0:01:31]} 42. Rf1 {[%emt 0:01:34]} Rf6 {[%emt 0:00:14]} 43. Qe5 {[%emt 0:00:46]} Rf5 {[%emt 0:00:11]} 44. Qe7 {[%emt 0:00:24]} Kg7 {[%emt 0:00:16]} 45. h4 {[%emt 0:00:40]} h5 {[%emt 0:00:09]} 46. Qd7 {[%emt 0:00:25]} Qd3 {[%emt 0:00:42]} 47. Qb7 {[%emt 0:00:28]} Rf3 {[%emt 0:00:37]} 48. Qb1 {[%emt 0:00:37]} Qxb1 {[%emt 0:01:24]} 49. Rxb1 {[%emt 0:00:00]} Kf6 {[%emt 0:00:01]} 50. Rb6+ {[%emt 0:00:20]} Ke7 {[%emt 0:00:03]} 51. Rb5 {[%emt 0:00:39]} f6 {[%emt 0:01:13]} 52. Kf1 {[%emt 0:00:18]} Ke6 {[%emt 0:00:48]} 53. Ke2 {[%emt 0:00:11]} Ke7 {[%emt 0:01:01]} 54. Rb7+ {[%emt 0:00:05]} Kf8 {[%emt 0:00:20]} 55. Rc7 {[%emt 0:01:48]} Kg8 {[%emt 0:00:49]} 56. Re7 {[%emt 0:00:12]} Rf5 {[%emt 0:02:18]} 57. Rxe4 {[%emt 0:00:13]} Kf7 {[%emt 0:00:05]} 58. g4 {[%emt 0:00:49]} Ra5 {[%emt 0:00:08]} 59. gxh5 {[%emt 0:00:07]} Rxh5 {[%emt 0:00:25]} 60. Rg4 {[%emt 0:00:24]} f5 {[%emt 0:00:35]} 61. Rf4 {[%emt 0:00:26]} Ke6 {[%emt 0:00:02]} 62. Kf3 {[%emt 0:00:57]} Rh8 {[%emt 0:00:49]} 63. Kg3 {[%emt 0:00:11]} Ra8 {[%emt 0:00:29]} 64. Rf3 {[%emt 0:00:47]} Rh8 {[%emt 0:00:24]} 65. Rf4 {[%emt 0:01:03]} Kd5 {[%emt 0:01:24]} 66. Kf3 {[%emt 0:00:33]} Rf8 {[%emt 0:00:49]} 67. Ke2 {[%emt 0:00:23]} Rh8 {[%emt 0:00:41]} 68. Kd3 {[%emt 0:00:14]} Ke6 {[%emt 0:00:13]} 69. e4 {[%emt 0:00:52]} Ra8 {[%emt 0:00:17]} 70. exf5+ {[%emt 0:00:28]} gxf5 {[%emt 0:00:10]} 71. h5 {[%emt 0:00:05]} Ra3+ {[%emt 0:00:15]} 72. Kc4 {[%emt 0:00:14]} Rh3 {[%emt 0:00:07]} 73. Kc5 {[%emt 0:01:15]} Rxh5 {[%emt 0:00:12]} 74. Rf3 {[%emt 0:00:28]} f4+ {[%emt 0:01:28]} 75. Kc4 {[%emt 0:00:31]} Rf5 {[%emt 0:00:52]} 76. Ra3 {[%emt 0:00:10]} Kd6 {[%emt 0:00:15]} 77. Ra6+ {[%emt 0:00:09]} Kd7 {[%emt 0:00:03]} 78. Rh6 {[%emt 0:00:15]} f3 {[%emt 0:00:21]} 79. Kd3 {[%emt 0:00:14]} Rf7 {[%emt 0:00:25]} 80. Ke4 {[%emt 0:00:16]} Kc7 {[%emt 0:01:34]} 81. Rh3 {[%emt 0:00:53]} Kd6 {[%emt 0:00:08]} 82. Rxf3 {[%emt 0:00:10]} Re7+ {[%emt 0:00:08]} 83. Kd3 {[%emt 0:00:00]} Re1 {[%emt 0:00:09]} 84. Re3 {[%emt 0:00:38]} Rf1 {[%emt 0:00:16]} 85. Ke2 {[%emt 0:01:40]} Ra1 {[%emt 0:00:02]} 86. Re5 {[%emt 0:00:57]} Ra3 {[%emt 0:00:09]} 87. Rb5 {[%emt 0:00:25]} Ke6 {[%emt 0:00:09]} 88. f3 {[%emt 0:00:22]} Kd6 {[%emt 0:00:13]} 89. Kf2 {[%emt 0:00:51]} Rd3 {[%emt 0:00:30]} 90. Rb4 {[%emt 0:00:11]} Ke6 {[%emt 0:00:44]} 91. Kg3 {[%emt 0:00:08]} Kf5 {[%emt 0:00:23]} 92. Rb5+ {[%emt 0:00:04]} Ke6 {[%emt 0:00:07]} 93. Re5+ {[%emt 0:01:19]} Kf6 {[%emt 0:00:07]} 94. Rd5 {[%emt 0:00:45]} Ke6 {[%emt 0:00:14]} 95. Re5+ {[%emt 0:00:02]} Kf6 {[%emt 0:00:09]} 96. Re4 {[%emt 0:00:01]} Kf5 {[%emt 0:00:08]} 97. Kf2 {[%emt 0:01:10]} Ra3 {[%emt 0:00:08]} 98. Ke2 {[%emt 0:00:43]} Ra2+ {[%emt 0:00:19]} 99. Kd3 {[%emt 0:00:30]} Ra3+ {[%emt 0:00:11]} 100. Kc4 {[%emt 0:00:05]} Rxf3 {[%emt 0:00:09]} 101. Re1 {[%emt 0:00:33]} Ra3 {[%emt 0:01:22]} 102. d5 {[%emt 0:00:18]} Kf6 {[%emt 0:02:19]} 103. d6 {[%emt 0:00:36]} Ra2 {[%emt 0:00:19]} 104. Kc5 {[%emt 0:00:18]} Rc2+ {[%emt 0:00:37]} 105. Kb6 {[%emt 0:00:13]} Rb2+ {[%emt 0:00:07]} 106. Kc7 {[%emt 0:00:03]} Rc2+ {[%emt 0:00:09]} 107. Kd8 {[%emt 0:00:14]} Rd2 {[%emt 0:00:13]} 108. Kd7 {[%emt 0:01:56]} Rh2 {[%emt 0:01:53]} 109. Kc7 {[%emt 0:00:41]} Rc2+ {[%emt 0:00:10]} 110. Kd8 {[%emt 0:00:04]} Rd2 {[%emt 0:00:31]} 111. d7 {[%emt 0:00:04]} Kf7 {[%emt 0:00:16]} 112. Rf1+ {[%emt 0:00:34]} Kg7 {[%emt 0:02:09]} 113. Rc1 {[%emt 0:00:09]} 1-0

[Event "VIII Iberoamericano Mexico 2022"]
[Site "Mexico City"]
[Date "2022.02.17"]
[Round "6.46"]
[White "Trejo Alonso, Rodrigo Alberto"]
[Black "Fernandez Rivero, Karla July"]
[Result "0-1"]
[ECO "A13"]
[WhiteElo "1696"]
[BlackElo "2025"]
[Annotator "NA"]
[PlyCount "52"]
[EventDate "2022.02.12"]
[EventType "swiss"]
[EventCountry "MEX"]
[SourceTitle "playchess.com"]
[Source "ChessBase"]
[SourceQuality "1"]
[TimeControl "5400+30"]

1. Nf3 {[%emt 0:17:38]} Nf6 {[%emt 0:00:42]} 2. g3 {[%emt 0:00:28]} e6 {[%emt 0:00:33]} 3. Bg2 {[%emt 0:00:22]} d5 {[%emt 0:00:22]} 4. O-O {[%emt 0:00:16]} Be7 {[%emt 0:01:07]} 5. c4 {[%emt 0:00:12]} dxc4 {[%emt 0:00:23]} 6. Qa4+ {[%emt 0:01:00]} c6 {[%emt 0:01:06]} 7. Qxc4 {[%emt 0:00:06]} b5 {[%emt 0:00:14]} 8. Qc2 {[%emt 0:00:24]} Bb7 {[%emt 0:01:13]} 9. d3 {[%emt 0:02:04]} c5 {[%emt 0:03:21]} 10. Nc3 {[%emt 0:02:15]} a6 {[%emt 0:00:43]} 11. Bf4 {[%emt 0:03:33]} Nc6 {[%emt 0:05:38]} 12. a3 {[%emt 0:00:25]} Rc8 {[%emt 0:01:44]} 13. Ne5 {[%emt 0:04:26]} Nd4 {[%emt 0:03:41]} 14. Qd1 {[%emt 0:00:08]} Bxg2 {[%emt 0:08:55]} 15. Kxg2 {[%emt 0:00:06]} Nd5 {[%emt 0:00:33]} 16. e4 {[%emt 0:01:39]} Nxf4+ {[%emt 0:04:59]} 17. gxf4 {[%emt 0:00:10]} O-O {[%emt 0:00:27]} 18. Kh1 {[%emt 0:01:53]} f6 {[%emt 0:05:15]} 19. Nf3 {[%emt 0:01:32]} f5 {[%emt 0:03:51]} 20. Nxd4 {[%emt 0:03:18]} cxd4 {[%emt 0:03:59]} 21. Ne2 {[%emt 0:00:20]} fxe4 {[%emt 0:00:25]} 22. dxe4 {[%emt 0:00:14]} d3 {[%emt 0:01:28]} 23. Ng3 Rxf4 {[%emt 0:00:42]} 24. Qd2 {[%emt 0:00:36]} Rf8 {[%emt 0:02:20]} 25. Rac1 {[%emt 0:03:15]} Rxc1 {[%emt 0:00:28]} 26. Rxc1 {[%emt 0:00:09]} Bg5 {[%emt 0:00:14]} 0-1

[Event "VIII Iberoamericano Mexico 2022"]
[Site "Mexico City"]
[Date "2022.02.17"]
[Round "6.47"]
[White "Macias Zamora, Jose Armando"]
[Black "Martin Del Campo C., Jorge"]
[Result "1/2-1/2"]
[ECO "B43"]
[WhiteElo "1488"]
[BlackElo "2019"]
[Annotator "NA"]
[PlyCount "57"]
[EventDate "2022.02.12"]
[EventType "swiss"]
[EventCountry "MEX"]
[SourceTitle "playchess.com"]
[Source "ChessBase"]
[SourceQuality "1"]
[TimeControl "5400+30"]

1. e4 {[%emt 0:00:04]} c5 {[%emt 0:00:09]} 2. Nf3 {[%emt 0:00:05]} e6 {[%emt 0:00:08]} 3. d4 {[%emt 0:00:21]} cxd4 {[%emt 0:00:09]} 4. Nxd4 {[%emt 0:00:25]} a6 {[%emt 0:00:08]} 5. Nc3 {[%emt 0:00:19]} Qc7 {[%emt 0:00:23]} 6. a3 {[%emt 0:02:16]} b5 {[%emt 0:01:23]} 7. Bd3 {[%emt 0:14:02]} Nc6 {[%emt 0:01:44]} 8. Nxc6 {[%emt 0:00:17]} dxc6 {[%emt 0:03:24]} 9. O-O {[%emt 0:01:46]} Nf6 {[%emt 0:01:32]} 10. Qe2 {[%emt 0:15:48]} Be7 {[%emt 0:00:12]} 11. e5 {[%emt 0:01:04]} Nd7 {[%emt 0:15:31]} 12. f4 {[%emt 0:02:58]} Nc5 {[%emt 0:01:47]} 13. Ne4 {[%emt 0:01:09]} Nxe4 {[%emt 0:19:03]} 14. Bxe4 {[%emt 0:00:52]} g6 {[%emt 0:01:25]} 15. Kh1 {[%emt 0:07:42]} Bb7 {[%emt 0:00:13]} 16. Bd2 {[%emt 0:06:40]} c5 {[%emt 0:00:31]} 17. Bxb7 {[%emt 0:03:41]} Qxb7 {[%emt 0:00:09]} 18. Ba5 {[%emt 0:00:11]} O-O {[%emt 0:03:08]} 19. Rad1 {[%emt 0:06:48]} Bd8 {[%emt 0:03:27]} 20. Bxd8 {[%emt 0:01:23]} Rfxd8 {[%emt 0:00:09]} 21. Rd6 {[%emt 0:02:05]} Rxd6 {[%emt 0:01:59]} 22. exd6 {[%emt 0:00:03]} Rd8 {[%emt 0:00:08]} 23. Rd1 {[%emt 0:00:48]} Qc6 {[%emt 0:00:11]} 24. Qe5 {[%emt 0:01:07]} a5 {[%emt 0:02:50]} 25. c3 {[%emt 0:10:53]} b4 {[%emt 0:01:25]} 26. axb4 {[%emt 0:01:36]} axb4 {[%emt 0:00:12]} 27. cxb4 {[%emt 0:01:21]} cxb4 {[%emt 0:00:10]} 28. h3 {[%emt 0:01:08]} h5 {[%emt 0:03:00]} 29. Qd4 {[%emt 0:02:29]} 1/2-1/2